bitfinex/quotes_BTCUSD_20240818
["timestamp","ask_amount","ask_price","bid_price","bid_amount"]
[1723949331781,0.001826,59787.0,59786.0,0.80533443]
[1723949331950,0.001826,59787.0,59786.0,0.79797743]
[1723949332152,0.000826,59787.0,59786.0,0.79797743]
[1723949332349,0.000826,59787.0,59786.0,0.67904703]
[1723949332553,0.002826,59787.0,59786.0,0.68304703]
[1723949332835,0.03,59799.0,59786.0,0.68304703]
[1723949332836,0.10302147,59824.0,59805.0,0.191863]
[1723949333038,0.100297,59822.0,59805.0,1.85334354]
[1723949333296,0.100297,59822.0,59805.0,1.95845238]
[1723949333409,0.100297,59822.0,59805.0,1.97937407]
[1723949333613,0.150446,59822.0,59805.0,1.97937407]
[1723949333818,0.050149,59822.0,59805.0,1.97937407]
[1723949334015,0.050149,59822.0,59805.0,1.98670007]
[1723949334217,0.001826,59806.0,59805.0,2.0240114]
[1723949334443,0.015826,59806.0,59805.0,1.93460522]
[1723949334808,0.015826,59806.0,59805.0,2.33460522]
[1723949335011,0.002826,59806.0,59805.0,2.44493122]
[1723949335202,0.000826,59806.0,59805.0,2.4130114]
[1723949335502,0.002826,59806.0,59805.0,2.4300114]
[1723949337834,0.002826,59806.0,59805.0,2.4310114]
[1723949338166,0.05014,59833.0,59828.0,0.0784]
[1723949338364,0.101101,59835.0,59828.0,0.0784]
[1723949338365,0.100278,59834.0,59828.0,0.0784]
[1723949338550,0.100278,59834.0,59829.0,0.00457483]
[1723949338551,0.050139,59833.0,59829.0,0.00457483]
[1723949338721,0.050139,59833.0,59830.0,0.01331198]
[1723949339120,0.050139,59833.0,59831.0,0.0045748]
[1723949340626,0.052139,59833.0,59831.0,0.0045748]
[1723949341069,0.050139,59833.0,59831.0,0.0045748]
[1723949341405,0.050139,59833.0,59831.0,0.0055748]
[1723949341406,0.001,59833.0,59831.0,0.0055748]
[1723949341639,0.051139,59833.0,59831.0,0.03949584]
[1723949341974,0.051139,59833.0,59831.0,0.0055748]
[1723949341975,0.05014,59832.0,59831.0,0.0055748]
[1723949343532,0.05014,59832.0,59831.0,0.0045748]
[1723949343942,0.05014,59832.0,59831.0,0.002]
[1723949344166,0.05014,59832.0,59831.0,0.0045748]
[1723949344380,0.05014,59832.0,59828.0,0.4784]
[1723949344654,0.000826,59833.0,59831.0,0.004]
[1723949344655,0.050966,59833.0,59831.0,0.004]
[1723949344993,0.050966,59833.0,59832.0,0.00457478]
[1723949345393,0.05014,59832.0,59829.0,0.0528545]
[1723949345592,0.000826,59833.0,59831.0,0.050141]
[1723949345841,0.000826,59833.0,59832.0,0.00457478]
[1723949346375,0.000826,59833.0,59830.0,0.15842295]
[1723949346511,0.000826,59833.0,59832.0,0.05471478]
[1723949346713,0.000826,59833.0,59832.0,0.05014]
[1723949346933,0.000826,59833.0,59832.0,0.05471478]
[1723949347359,0.000826,59833.0,59832.0,0.05571478]
[1723949347558,0.000826,59833.0,59832.0,0.05471478]
[1723949347763,0.000826,59833.0,59832.0,0.10865595]
[1723949347914,0.000826,59833.0,59832.0,0.11265595]
[1723949348115,0.000826,59833.0,59832.0,0.19015595]
[1723949348349,0.000826,59833.0,59832.0,0.19415595]
[1723949349742,0.000826,59833.0,59832.0,0.19015595]
[1723949350100,0.000826,59833.0,59832.0,0.19515595]
[1723949350510,0.000826,59833.0,59832.0,0.20115595]
[1723949350913,0.000826,59833.0,59832.0,0.30143595]
[1723949351292,0.000826,59833.0,59832.0,0.20115595]
[1723949351691,0.000826,59833.0,59832.0,0.60115595]
[1723949352484,0.000826,59833.0,59832.0,0.49707478]
[1723949352691,0.000826,59833.0,59832.0,0.54721478]
[1723949354164,0.000826,59833.0,59832.0,0.49707478]
[1723949354575,0.050965,59833.0,59832.0,0.49707478]
[1723949355980,0.050965,59833.0,59832.0,0.49207478]
[1723949356196,0.050965,59833.0,59832.0,0.49607478]
[1723949356376,0.050965,59833.0,59832.0,0.48607478]
[1723949356608,0.151244,59833.0,59832.0,0.40857478]
[1723949356812,0.251523,59833.0,59832.0,0.40657478]
[1723949357011,0.251523,59833.0,59832.0,0.00657478]
[1723949357629,0.315723,59833.0,59832.0,0.00657478]
[1723949359517,0.315723,59833.0,59832.0,0.00457478]
[1723949359754,0.315723,59833.0,59832.0,0.00657478]
[1723949359926,0.315723,59833.0,59832.0,0.002]
[1723949360136,0.315723,59833.0,59832.0,0.00650195]
[1723949360340,0.51959827,59833.0,59832.0,0.002]
[1723949360544,0.51959827,59833.0,59832.0,0.00650195]
[1723949360688,0.51959827,59833.0,59832.0,0.002]
[1723949360905,0.51959827,59833.0,59832.0,0.0065131]
[1723949361131,0.51959827,59833.0,59832.0,0.002]
[1723949361335,0.51959827,59833.0,59832.0,0.0065131]
[1723949361506,0.51959827,59833.0,59832.0,0.002]
[1723949361709,0.51959827,59833.0,59832.0,0.0065131]
[1723949361910,0.51959827,59833.0,59832.0,0.002]
[1723949362599,0.51959827,59833.0,59832.0,0.0065131]
[1723949362801,0.51959827,59833.0,59832.0,0.002]
[1723949363193,0.51959827,59833.0,59827.0,0.4]
[1723949363194,0.15043,59828.0,59827.0,0.4]
[1723949364488,0.15043,59828.0,59827.0,0.407]
[1723949365336,0.15043,59828.0,59827.0,0.413]
[1723949366770,0.15043,59828.0,59827.0,0.406]
[1723949367126,0.15043,59828.0,59827.0,0.4]
[1723949367322,0.15043,59828.0,59827.0,0.46453]
[1723949368521,0.15043,59828.0,59827.0,0.47053]
[1723949369123,0.15043,59828.0,59827.0,0.413]
[1723949370434,0.000825,59835.0,59834.0,0.126538]
[1723949370648,0.000825,59835.0,59834.0,0.52196811]
[1723949370902,0.000825,59835.0,59834.0,0.74552211]
[1723949371109,0.000825,59835.0,59834.0,0.74452211]
[1723949371519,0.000825,59835.0,59834.0,0.68866536]
[1723949371700,0.000825,59835.0,59834.0,1.22313994]
[1723949371908,0.000825,59835.0,59834.0,1.1673219]
[1723949372144,0.000825,59835.0,59834.0,1.22313886]
[1723949372551,0.001825,59835.0,59834.0,1.28719667]
[1723949372974,0.001825,59835.0,59834.0,1.30119667]
[1723949373122,0.001825,59835.0,59834.0,1.25413886]
[1723949373325,0.001825,59835.0,59834.0,1.25613886]
[1723949373934,0.001825,59835.0,59834.0,1.48813886]
[1723949374607,0.001825,59835.0,59834.0,1.53519667]
[1723949374810,0.001825,59835.0,59834.0,1.48813886]
[1723949376255,0.001825,59835.0,59834.0,1.64268248]
[1723949376459,0.000824,59836.0,59835.0,0.495762]
[1723949376665,0.000824,59836.0,59835.0,1.35465321]
[1723949376867,0.000824,59836.0,59835.0,1.45815865]
[1723949377293,0.000824,59836.0,59835.0,1.48281325]
[1723949377687,0.000824,59836.0,59835.0,1.49681325]
[1723949377874,0.000824,59836.0,59835.0,1.89681325]
[1723949378090,0.000824,59836.0,59835.0,1.91081325]
[1723949378215,0.000824,59836.0,59835.0,1.78754027]
[1723949378672,0.000824,59836.0,59835.0,1.77354027]
[1723949378883,0.000824,59836.0,59835.0,1.78754027]
[1723949379286,0.000824,59836.0,59835.0,1.78354027]
[1723949379483,0.00040338,59856.0,59845.0,0.005]
[1723949379682,0.00040338,59856.0,59845.0,0.98544805]
[1723949379910,0.00040338,59856.0,59845.0,1.63810313]
[1723949380111,0.00040338,59856.0,59845.0,1.51456976]
[1723949380319,0.00040338,59856.0,59845.0,1.5991433]
[1723949380521,0.00040338,59856.0,59845.0,1.45606481]
[1723949380719,0.00040338,59856.0,59845.0,1.65524738]
[1723949380926,0.00040338,59856.0,59845.0,1.60618957]
[1723949381119,0.00040338,59856.0,59845.0,1.59218957]
[1723949381322,0.00040338,59856.0,59845.0,1.17204782]
[1723949381572,0.00040338,59856.0,59845.0,1.12266486]
[1723949381757,0.00040338,59856.0,59846.0,0.491699]
[1723949381953,0.00040338,59856.0,59846.0,0.99820632]
[1723949382151,0.00040338,59856.0,59846.0,1.05012722]
[1723949382363,0.00040338,59856.0,59846.0,1.04610781]
[1723949382860,0.00040338,59856.0,59846.0,1.04810781]
[1723949383084,0.00040338,59856.0,59846.0,1.06410781]
[1723949383285,0.00040338,59856.0,59846.0,1.01474559]
[1723949383508,0.00040338,59856.0,59846.0,1.02874559]
[1723949383708,0.00040338,59856.0,59846.0,1.40788232]
[1723949383908,0.00040338,59856.0,59846.0,1.4781053]
[1723949384212,0.00040338,59856.0,59846.0,1.51681094]
[1723949384411,0.00040338,59856.0,59846.0,1.42874069]
[1723949384830,0.00040338,59856.0,59846.0,1.88744031]
[1723949385196,0.00040338,59856.0,59846.0,1.4920589]
[1723949385392,1e-08,59848.0,59847.0,0.355892]
[1723949385660,1e-08,59848.0,59847.0,0.81699272]
[1723949385778,1e-08,59848.0,59847.0,0.82171704]
[1723949386667,1e-08,59848.0,59847.0,0.83571704]
[1723949387009,1e-08,59848.0,59847.0,1.23171704]
[1723949387411,1e-08,59848.0,59847.0,1.23371704]
[1723949387789,1e-08,59848.0,59847.0,1.34771704]
[1723949387996,0.00040338,59856.0,59855.0,0.351847]
[1723949388190,0.00040338,59856.0,59855.0,0.95548624]
[1723949388389,0.00040338,59856.0,59855.0,1.23014035]
[1723949388608,0.00040338,59856.0,59855.0,1.21201023]
[1723949388808,0.00040338,59856.0,59855.0,1.63286453]
[1723949389289,0.00040338,59856.0,59855.0,1.66086453]
[1723949389644,0.00040338,59856.0,59855.0,1.55862253]
[1723949390929,0.00040338,59856.0,59855.0,1.25621042]
[1723949391344,0.00040338,59856.0,59855.0,1.14103456]
[1723949391520,0.00040338,59856.0,59855.0,1.05368372]
[1723949391723,0.00040338,59856.0,59855.0,0.95368372]
[1723949393124,0.72970498,59860.0,59859.0,0.050117]
[1723949393282,0.72970498,59860.0,59859.0,0.24467154]
[1723949393481,0.72970498,59860.0,59859.0,0.32800283]
[1723949394382,0.72970498,59860.0,59859.0,0.24934629]
[1723949394763,0.72970498,59860.0,59859.0,0.48879175]
[1723949395315,0.72970498,59860.0,59859.0,0.50179175]
[1723949395522,0.72970498,59860.0,59859.0,0.47879175]
[1723949396101,0.72970498,59860.0,59859.0,0.42867475]
[1723949396281,0.72970498,59860.0,59859.0,0.53425113]
[1723949396881,0.72970498,59860.0,59859.0,0.42867475]
[1723949397473,0.79110498,59860.0,59859.0,0.42867475]
[1723949400304,0.94145398,59860.0,59859.0,0.42867475]
[1723949400628,1.04168698,59860.0,59859.0,0.024]
[1723949400853,1.02265398,59860.0,59859.0,0.02867742]
[1723949401097,1.02265398,59860.0,59859.0,0.024]
[1723949401098,0.79110498,59860.0,59859.0,0.024]
[1723949401267,0.79110498,59860.0,59859.0,0.073097]
[1723949401469,0.79110498,59860.0,59859.0,0.07777551]
[1723949401693,0.79110498,59860.0,59859.0,0.46477551]
[1723949401886,0.79110498,59860.0,59859.0,0.46577551]
[1723949402267,0.72970498,59860.0,59859.0,0.83680005]
[1723949402463,0.72970498,59860.0,59859.0,0.85980005]
[1723949402662,0.72970498,59860.0,59859.0,0.86080005]
[1723949402868,0.72970498,59860.0,59859.0,0.75956505]
[1723949403267,0.72970498,59860.0,59859.0,0.76756505]
[1723949403684,0.72970498,59860.0,59859.0,0.66733005]
[1723949404096,0.72970498,59860.0,59859.0,0.76756505]
[1723949404318,0.72970498,59860.0,59859.0,0.41867851]
[1723949404525,0.79110498,59860.0,59859.0,0.41067851]
[1723949404729,0.79110498,59860.0,59859.0,0.01067851]
[1723949404945,0.84122098,59860.0,59859.0,0.01667851]
[1723949405155,0.79110498,59860.0,59859.0,0.01467851]
[1723949405588,0.72970498,59860.0,59859.0,0.38345312]
[1723949405791,0.72970498,59860.0,59859.0,1.04880512]
[1723949405999,0.72970498,59860.0,59859.0,1.17389489]
[1723949406201,0.72970498,59860.0,59859.0,1.32099313]
[1723949406616,0.72970498,59860.0,59859.0,1.42122813]
[1723949406820,0.72970498,59860.0,59859.0,1.32099313]
[1723949407035,0.72970498,59860.0,59859.0,1.37701511]
[1723949407566,0.72970498,59860.0,59859.0,1.35501511]
[1723949407795,0.72970498,59860.0,59859.0,1.46925011]
[1723949407968,0.72970498,59860.0,59859.0,1.48325011]
[1723949408361,0.0002,59879.0,59859.0,1.48325011]
[1723949408362,0.00051302,59909.0,59907.0,0.55476778]
[1723949408573,0.100129,59923.0,59907.0,0.55476778]
[1723949408574,0.0002,59939.0,59938.0,0.100103]
[1723949408854,0.100043,59974.0,59938.0,0.100103]
[1723949408855,7.4e-07,59951.0,59950.0,0.460827]
[1723949409067,0.0837007,60001.0,59981.0,0.100031]
[1723949409068,0.39491844,59992.0,59981.0,0.100031]
[1723949409285,0.39491844,59992.0,59981.0,1.110277]
[1723949409286,0.33172344,59992.0,59981.0,1.110277]
[1723949409490,0.33172344,59992.0,59981.0,2.43498705]
[1723949409491,0.001,59982.0,59981.0,2.43498705]
[1723949409706,0.33172344,59992.0,59988.0,0.15103]
[1723949409919,1.22341528,59999.0,59998.0,0.601006]
[1723949410136,1.22341528,59999.0,59998.0,1.60958585]
[1723949410349,0.099933,60040.0,59998.0,1.60958585]
[1723949410350,0.00040493,60151.0,59998.0,2.45066747]
[1723949410561,0.00040493,60151.0,60055.0,0.1213936]
[1723949410562,0.066768,60057.0,60055.0,0.1213936]
[1723949410767,0.066768,60057.0,60043.0,0.14567232]
[1723949410972,0.066,60063.0,60047.0,0.14567232]
[1723949411197,0.2882,60070.0,60058.0,0.14567232]
[1723949411411,0.03,60082.0,60066.0,0.12069762]
[1723949411621,0.066,60065.0,60056.0,0.00505662]
[1723949411832,0.0999,60060.0,60057.0,0.36967424]
[1723949412044,0.0999,60060.0,60037.0,0.4]
[1723949412045,0.03,60051.0,60044.0,0.21525795]
[1723949412253,0.2882,60058.0,60018.0,0.21323515]
[1723949412254,0.03,60037.0,60018.0,0.21323515]
[1723949412461,0.03,60037.0,59987.0,0.96110012]
[1723949412462,0.099966,60020.0,60019.0,0.88771474]
[1723949412680,0.099966,60020.0,60018.0,0.04813305]
[1723949412681,0.100968,60019.0,60018.0,0.04813305]
[1723949412896,0.04979,60012.0,60011.0,0.0002]
[1723949413114,0.04979,60012.0,59997.0,0.08816286]
[1723949413115,0.066,60002.0,59997.0,0.08816286]
[1723949413328,0.2882,59998.0,59997.0,0.11224429]
[1723949413546,0.03,59994.0,59993.0,0.04820314]
[1723949413763,0.251832,59992.0,59991.0,1e-06]
[1723949413968,0.51831382,59992.0,59991.0,1e-06]
[1723949414167,0.91832682,59992.0,59991.0,1e-06]
[1723949414274,0.94132682,59992.0,59991.0,1e-06]
[1723949414478,1.04133982,59992.0,59991.0,1e-06]
[1723949414683,1.04133982,59992.0,59991.0,0.00420312]
[1723949414881,0.816858,59992.0,59991.0,0.00420312]
[1723949415169,0.529045,59992.0,59991.0,0.00520312]
[1723949415320,0.543045,59992.0,59991.0,0.00520312]
[1723949415720,0.62449298,59992.0,59991.0,0.00520312]
[1723949415977,0.54549298,59992.0,59991.0,0.00420312]
[1723949416150,0.064006,59992.0,59991.0,0.3743996]
[1723949416416,0.066,60006.0,59995.0,0.0002]
[1723949416417,0.100006,59996.0,59995.0,0.0002]
[1723949416649,0.150009,59996.0,59995.0,0.37019648]
[1723949416902,0.050003,59996.0,59995.0,0.37019648]
[1723949417164,0.250015,59996.0,59995.0,0.37019648]
[1723949417412,0.150009,59996.0,59995.0,0.37019648]
[1723949417887,0.250015,59996.0,59995.0,0.35619648]
[1723949418147,0.3309073,59996.0,59995.0,0.35619648]
[1723949418408,0.150016,59993.0,59992.0,0.00420212]
[1723949418665,0.53134704,59993.0,59992.0,0.00420212]
[1723949418890,0.33785364,59993.0,59992.0,0.00420212]
[1723949419122,0.03783164,59993.0,59992.0,0.00420212]
[1723949419358,0.100005,59997.0,59992.0,0.00420212]
[1723949419588,0.014,59996.0,59995.0,0.11997908]
[1723949419818,0.014,59996.0,59995.0,0.11988176]
[1723949420052,0.050005,59994.0,59992.0,0.00620212]
[1723949420317,0.014,59996.0,59991.0,1e-06]
[1723949420318,0.150019,59992.0,59991.0,1e-06]
[1723949420580,0.08945798,59992.0,59991.0,1e-06]
[1723949420838,0.38949698,59992.0,59991.0,1e-06]
[1723949421065,0.38949698,59992.0,59991.0,0.00420291]
[1723949421295,0.52944668,59992.0,59991.0,0.00420291]
[1723949421503,0.49049698,59992.0,59991.0,0.00420291]
[1723949421703,0.48949698,59992.0,59991.0,0.00420291]
[1723949421921,0.39348398,59992.0,59991.0,0.00420291]
[1723949422112,0.254019,59992.0,59991.0,0.00420291]
[1723949422314,0.38948398,59992.0,59991.0,0.00420291]
[1723949422521,0.48949698,59992.0,59991.0,0.00420291]
[1723949422669,0.39349698,59992.0,59991.0,0.00420291]
[1723949422907,0.19347098,59992.0,59991.0,0.00420291]
[1723949423320,0.29348398,59992.0,59991.0,0.00420291]
[1723949423881,0.28948398,59992.0,59991.0,0.00420291]
[1723949424643,0.29048398,59992.0,59991.0,0.00420291]
[1723949424839,0.28948398,59992.0,59991.0,0.00420291]
[1723949425103,0.100011,59994.0,59991.0,0.00420291]
[1723949425241,0.0388963,59999.0,59991.0,0.00420291]
[1723949425441,0.050006,59992.0,59991.0,0.00420291]
[1723949425639,0.150019,59992.0,59991.0,0.00420291]
[1723949425918,0.101,60005.0,59992.0,0.00420191]
[1723949426105,0.050002,59997.0,59992.0,0.00420191]
[1723949426280,0.00984943,59993.0,59992.0,0.00420191]
[1723949426512,0.050005,59993.0,59992.0,0.00420191]
[1723949426705,0.28934005,59993.0,59992.0,0.00420191]
[1723949426872,0.38935105,59993.0,59992.0,0.00420191]
[1723949427079,0.39035105,59993.0,59992.0,0.00420191]
[1723949427681,0.45245105,59993.0,59992.0,0.00420191]
[1723949427889,0.55245105,59993.0,59992.0,0.00420191]
[1723949428089,0.55345105,59993.0,59992.0,0.00420191]
[1723949428301,0.65546205,59993.0,59992.0,0.00420191]
[1723949428538,0.353045,59992.0,59991.0,0.0009063]
[1723949428753,0.59244051,59992.0,59991.0,0.0009063]
[1723949429579,0.59244051,59992.0,59983.0,7e-07]
[1723949429580,0.683117,59984.0,59983.0,7e-07]
[1723949429804,0.233469,59972.0,59971.0,0.0002]
[1723949430041,0.87800442,59972.0,59971.0,0.0002]
[1723949430235,0.2812,59952.0,59951.0,0.0002]
[1723949430483,0.52498191,59952.0,59951.0,0.0002]
[1723949430686,0.62698191,59952.0,59951.0,0.0002]
[1723949430888,0.62698191,59952.0,59931.0,0.009242]
[1723949430889,0.150169,59932.0,59931.0,0.009242]
[1723949431090,0.001,59941.0,59931.0,0.009242]
[1723949431091,0.0544,59941.0,59931.0,0.009242]
[1723949431295,0.150169,59932.0,59931.0,0.009242]
[1723949431514,0.250282,59932.0,59931.0,0.009242]
[1723949432141,0.350395,59932.0,59931.0,0.009242]
[1723949432490,0.350282,59932.0,59931.0,0.009242]
[1723949433307,0.050056,59932.0,59931.0,0.009242]
[1723949433590,0.150169,59932.0,59931.0,0.009242]
[1723949433804,0.050056,59932.0,59931.0,0.009242]
[1723949434015,0.050055,59934.0,59931.0,0.009242]
[1723949434223,0.151169,59932.0,59931.0,0.009242]
[1723949434682,0.050056,59932.0,59931.0,0.009242]
[1723949434899,0.100095,59943.0,59931.0,0.009242]
[1723949435110,0.050052,59938.0,59931.0,0.009242]
[1723949435351,0.200096,59942.0,59932.0,0.00383654]
[1723949435352,0.1,59942.0,59932.0,0.00383654]
[1723949435608,0.15348,59952.0,59938.0,0.002]
[1723949436027,0.050045,59946.0,59938.0,0.002]
[1723949436249,0.050043,59948.0,59939.0,0.05388203]
[1723949436477,0.0534,59952.0,59939.0,0.00383203]
[1723949436692,0.050042,59949.0,59947.0,0.002]
[1723949436905,0.0631,59964.0,59947.0,0.002]
[1723949437145,0.100067,59960.0,59948.0,0.00583191]
[1723949437392,0.050033,59960.0,59950.0,0.002]
[1723949437632,0.0826,59967.0,59955.0,0.100073]
[1723949437633,0.050027,59967.0,59955.0,0.100073]
[1723949437842,0.1336,59974.0,59962.0,0.002]
[1723949437843,0.050026,59969.0,59962.0,0.002]
[1723949438056,0.050026,59969.0,59958.0,0.100069]
[1723949438252,0.014,59964.0,59962.0,0.050031]
[1723949438491,0.014,59964.0,59963.0,0.05003]
[1723949438695,0.014,59964.0,59963.0,0.150091]
[1723949438898,0.100037,59978.0,59963.0,0.0250155]
[1723949438899,0.050018,59978.0,59963.0,0.0250155]
[1723949439108,0.001,59969.0,59958.0,0.2976]
[1723949439318,0.100058,59965.0,59955.0,0.09611832]
[1723949439497,0.001,59969.0,59956.0,0.3701335]
[1723949439750,0.001,59969.0,59957.0,0.050035]
[1723949439751,0.050029,59965.0,59957.0,0.050035]
[1723949439967,0.001,59969.0,59954.0,0.02312811]
[1723949439968,0.05003,59964.0,59954.0,0.02312811]
[1723949440183,0.100053,59968.0,59955.0,0.39207038]
[1723949440394,0.100042,59975.0,59951.0,0.09611832]
[1723949440395,0.1346,59955.0,59951.0,0.09611832]
[1723949440600,0.113492,59955.0,59933.0,0.51177509]
[1723949440825,0.050055,59934.0,59933.0,0.51177509]
[1723949441051,0.1,59954.0,59932.0,0.001]
[1723949441276,0.002,59953.0,59932.0,0.001]
[1723949441482,0.100096,59942.0,59932.0,0.001]
[1723949441731,0.1,59954.0,59923.0,0.100127]
[1723949441732,0.1,59954.0,59939.0,0.001]
[1723949442182,0.102079,59953.0,59931.0,0.510242]
[1723949442211,0.150169,59932.0,59931.0,0.509242]
[1723949442926,0.166879,59944.0,59931.0,0.509242]
[1723949443180,0.1,59951.0,59938.0,0.001]
[1723949443430,0.100097,59942.0,59938.0,0.001]
[1723949443692,0.066875,59948.0,59933.0,0.001]
[1723949443693,0.050055,59934.0,59933.0,0.001]
[1723949443929,0.066875,59948.0,59939.0,0.001]
[1723949444163,0.100088,59947.0,59939.0,0.001]
[1723949444401,0.100093,59944.0,59939.0,0.001]
[1723949444631,0.050049,59941.0,59939.0,0.001]
[1723949444866,0.05005,59940.0,59939.0,0.001]
[1723949445334,0.001,59942.0,59939.0,0.001]
[1723949445335,0.050048,59942.0,59939.0,0.001]
[1723949445582,0.100083,59951.0,59931.0,0.509242]
[1723949445583,0.100078,59953.0,59947.0,0.001]
[1723949445860,0.050043,59948.0,59947.0,0.001]
[1723949446109,0.050046,59944.0,59943.0,0.001]
[1723949446534,0.1,59952.0,59943.0,0.001]
[1723949446535,0.050046,59945.0,59943.0,0.001]
[1723949447175,0.1,59949.0,59943.0,0.001]
[1723949447381,0.050045,59946.0,59943.0,0.001]
[1723949447586,0.050044,59947.0,59943.0,0.001]
[1723949447791,0.050046,59945.0,59943.0,0.001]
[1723949448204,0.051046,59945.0,59943.0,0.001]
[1723949448650,0.050046,59944.0,59943.0,0.001]
[1723949449324,0.10009,59946.0,59943.0,0.001]
[1723949449560,0.050046,59945.0,59943.0,0.001]
[1723949449996,0.001,59947.0,59937.0,0.5781226]
[1723949449997,0.001,59947.0,59946.0,0.051045]
[1723949450203,0.1656,59968.0,59946.0,0.051045]
[1723949450204,0.050035,59958.0,59946.0,0.14954833]
[1723949450416,0.050034,59959.0,59952.0,0.050039]
[1723949450632,0.100065,59961.0,59954.0,0.04845675]
[1723949450824,0.100065,59961.0,59951.0,0.09694121]
[1723949450825,0.066857,59964.0,59951.0,0.04845675]
[1723949451043,0.1656,59968.0,59951.0,0.04845675]
[1723949451245,0.050037,59956.0,59950.0,0.04845675]
[1723949451449,0.050034,59959.0,59950.0,0.09849775]
[1723949451658,0.050035,59958.0,59953.0,0.04845675]
[1723949451870,0.1,59961.0,59953.0,0.04845675]
[1723949451871,0.050037,59956.0,59953.0,0.04845675]
[1723949452072,0.1,59959.0,59953.0,0.04845675]
[1723949452275,0.200069,59959.0,59953.0,0.04845675]
[1723949452479,0.200069,59959.0,59952.0,0.04845675]
[1723949452480,0.050037,59955.0,59952.0,0.04845675]
[1723949452687,0.050035,59958.0,59957.0,0.001]
[1723949453104,0.066856,59967.0,59957.0,0.001]
[1723949453105,0.000823,59996.0,59988.0,0.100019]
[1723949453319,0.000823,59996.0,59957.0,1.02962454]
[1723949453320,0.00823,60011.0,60010.0,0.050991]
[1723949453533,0.00823,60011.0,60010.0,0.318274]
[1723949453751,0.00823,60011.0,60010.0,0.418257]
[1723949454175,0.00823,60011.0,60010.0,0.218291]
[1723949455095,0.00923,60011.0,60010.0,0.1823]
[1723949455515,0.00823,60011.0,60010.0,0.1683]
[1723949455740,0.00823,60011.0,60005.0,0.049995]
[1723949455741,0.00823,60011.0,60005.0,0.001]
[1723949455944,0.150012,59995.0,59994.0,0.001]
[1723949456160,0.050009,59989.0,59988.0,0.001]
[1723949456383,0.101,60005.0,59989.0,0.001]
[1723949456384,0.200032,59990.0,59989.0,0.001]
[1723949456605,0.050007,59992.0,59991.0,0.001]
[1723949456820,0.050007,59992.0,59982.0,0.56028954]
[1723949456821,0.049998,60002.0,60001.0,0.001]
[1723949457030,0.1,60004.0,59996.0,0.001]
[1723949457244,0.050002,59997.0,59996.0,0.001]
[1723949457473,0.100011,59993.0,59992.0,0.001]
[1723949457678,0.250027,59993.0,59992.0,0.001]
[1723949457888,0.250027,59993.0,59981.0,0.12126789]
[1723949457889,0.1357,59993.0,59989.0,0.04851445]
[1723949458099,0.150027,59989.0,59988.0,0.001]
[1723949458543,0.250045,59989.0,59988.0,0.001]
[1723949458968,0.150027,59989.0,59988.0,0.001]
[1723949459383,0.100018,59989.0,59984.0,0.04868838]
[1723949459594,0.150037,59985.0,59983.0,0.04868838]
[1723949459878,0.150039,59984.0,59983.0,0.04868838]
[1723949460085,0.25007,59983.0,59982.0,0.04968838]
[1723949460498,0.25007,59983.0,59974.0,0.1673]
[1723949460499,0.150045,59982.0,59981.0,0.001]
[1723949461998,0.050005,59993.0,59992.0,0.001]
[1723949462434,0.150016,59993.0,59992.0,0.001]
[1723949462647,0.100006,59997.0,59992.0,0.001]
[1723949462854,0.3013,60010.0,59989.0,0.001]
[1723949462855,0.050008,59990.0,59989.0,0.001]
[1723949463065,0.3013,60010.0,59987.0,0.001]
[1723949463066,0.002,60006.0,59987.0,0.001]
[1723949463271,0.031976,60009.0,59987.0,0.001]
[1723949463272,0.100004,59998.0,59987.0,0.001]
[1723949463483,0.033976,60009.0,59988.0,0.001]
[1723949463484,0.050007,59992.0,59988.0,0.001]
[1723949463691,0.131976,60009.0,59991.0,0.001]
[1723949463912,0.050005,59994.0,59991.0,0.001]
[1723949464096,0.100005,59997.0,59993.0,0.001]
[1723949464301,0.150015,59994.0,59993.0,0.001]
[1723949464922,0.050005,59994.0,59993.0,0.001]
[1723949465154,0.050003,59996.0,59995.0,0.001]
[1723949465357,0.00823,60011.0,60010.0,0.233583]
[1723949465568,0.1656,60063.0,60038.0,0.318204]
[1723949465778,0.099905,60057.0,60038.0,0.62335854]
[1723949465996,0.00823,60053.0,60038.0,0.72329454]
[1723949466458,0.00823,60053.0,60038.0,0.62335854]
[1723949466670,0.00343,60049.0,60044.0,0.049962]
[1723949466882,0.00343,60049.0,60045.0,0.17488466]
[1723949467083,0.00343,60049.0,60048.0,0.001]
[1723949467303,0.3351,60090.0,60054.0,0.001]
[1723949467566,0.099855,60087.0,60066.0,0.001]
[1723949467789,0.00823,60075.0,60074.0,0.001]
[1723949467988,0.099856,60086.0,60075.0,0.001]
[1723949467989,0.049936,60076.0,60075.0,0.001]
[1723949468196,0.099856,60086.0,60078.0,0.001]
[1723949468402,0.3351,60090.0,60078.0,0.001]
[1723949468615,0.3351,60090.0,60076.0,0.001]
[1723949468616,0.049935,60077.0,60076.0,0.001]
[1723949468823,0.099868,60079.0,60075.0,0.001]
[1723949468824,0.149809,60076.0,60075.0,0.001]
[1723949469052,0.049936,60076.0,60075.0,0.001]
[1723949469243,0.005,60075.0,60072.0,0.001]
[1723949469452,0.099877,60074.0,60067.0,0.001]
[1723949469664,0.09989,60066.0,60065.0,0.001]
[1723949469878,0.049946,60064.0,60063.0,0.001]
[1723949470121,0.001,60069.0,60056.0,0.51177509]
[1723949470122,0.001,60068.0,60060.0,0.001]
[1723949470340,0.149857,60057.0,60056.0,0.001]
[1723949470550,0.249762,60057.0,60056.0,0.001]
[1723949470758,0.001,60065.0,60040.0,0.1428]
[1723949470759,0.099891,60065.0,60064.0,0.001]
[1723949470966,0.249727,60065.0,60064.0,0.001]
[1723949471189,0.04995,60059.0,60054.0,0.001]
[1723949471400,0.04995,60059.0,60040.0,0.1428]
[1723949471401,0.199836,60049.0,60048.0,0.001]
[1723949471624,0.049959,60049.0,60048.0,0.001]